bitfinex/quotes_SOLUSD_20250718
["timestamp","ask_amount","ask_price","bid_price","bid_amount"]
[1752807085293,42.67515075,179.7,179.69,1e-08]
[1752807085876,49.26547123,179.7,179.67,1e-08]
[1752807086070,32.59032048,179.68,179.67,1e-08]
[1752807086270,63.09032048,179.68,179.67,1e-08]
[1752807087979,68.65577016,179.68,179.67,1e-08]
[1752807091772,31.56544968,179.68,179.67,1e-08]
[1752807091994,38.15577016,179.68,179.67,1e-08]
[1752807092200,31.56544968,179.68,179.67,1e-08]
[1752807092415,5.56544968,179.68,179.67,1e-08]
[1752807093305,32.59032048,179.7,179.67,1e-08]
[1752807093306,12.15546044,179.69,179.67,1e-08]
[1752807093787,6.59032048,179.68,179.67,1e-08]
[1752807095639,12.15577016,179.68,179.67,1e-08]
[1752807096109,5.56544968,179.68,179.67,1e-08]
[1752807096276,12.15577016,179.68,179.67,1e-08]
[1752807097597,5.56544968,179.68,179.67,1e-08]
[1752807098093,5.56544968,179.68,179.67,8.11570001]
[1752807098476,13.91193889,179.71,179.67,8.11570001]
[1752807098698,26.0,179.7,179.67,8.11570001]
[1752807099114,13.91193889,179.71,179.68,6.59032048]
[1752807099115,5.56452061,179.71,179.68,6.59032048]
[1752807099626,5.5639014,179.73,179.67,73.48134208]
[1752807099809,0.06,179.74,179.72,6.5551]
[1752807099996,0.06,179.74,179.73,8.15092048]
[1752807101114,0.06,179.74,179.73,24.93560445]
[1752807101305,0.06,179.78,179.74,16.78468397]
[1752807101639,0.06,179.78,179.77,6.59032048]
[1752807101812,0.06,179.78,179.77,23.37500445]
[1752807102696,0.06,179.78,179.77,35.49606785]
[1752807103217,0.06,179.78,179.77,23.34308397]
[1752807103408,0.06,179.78,179.77,29.93340445]
[1752807104330,0.06,179.82,179.78,18.41138397]
[1752807104503,0.06,179.82,179.81,23.37500445]
[1752807106415,0.06,179.82,179.81,6.59032048]
[1752807106708,0.06,179.82,179.8,6.59032048]
[1752807106918,0.06,179.82,179.81,6.59032048]
[1752807107311,0.06,179.82,179.8,6.59032048]
[1752807107824,0.06,179.82,179.78,8.21702048]
[1752807108028,0.06,179.82,179.81,6.59032048]
[1752807108606,0.06,179.82,179.81,10.43043287]
[1752807109208,0.06,179.82,179.81,6.59032048]
[1752807109405,0.06,179.82,179.81,27.21403234]
[1752807109615,0.06,179.82,179.81,27.09271186]
[1752807109819,0.06,179.82,179.81,33.68303234]
[1752807110318,0.06,179.82,179.81,27.09271186]
[1752807110833,0.06,179.82,179.81,33.68303234]
[1752807111436,0.06,179.82,179.81,29.84400445]
[1752807112838,0.06,179.82,179.81,35.40543039]
[1752807113418,0.06,179.82,179.81,95.20543039]
[1752807114028,0.06,179.82,179.81,93.48072012]
[1752807115038,0.06,179.82,179.81,99.04214606]
[1752807115417,0.06,179.82,179.81,93.48072012]
[1752807116329,0.06,179.82,179.81,123.87921207]
[1752807117144,0.06,179.82,179.81,129.44063801]
[1752807117317,0.06,179.82,179.81,125.60543039]
[1752807118178,0.06,179.82,179.81,120.04400445]
[1752807118521,0.06,179.82,179.81,125.60543039]
[1752807118935,0.06,179.82,179.81,129.43771424]
[1752807119134,0.06,179.82,179.81,120.04400445]
[1752807119325,0.06,179.82,179.81,125.60543039]
[1752807119524,0.1,179.85,179.84,23.37500445]
[1752807119835,0.1,179.85,179.84,113.57500445]
[1752807120428,0.1,179.85,179.84,96.79032048]
[1752807120622,5.66018904,179.85,179.84,96.77032048]
[1752807120819,5.66018904,179.85,179.84,30.38]
[1752807121047,5.66018904,179.85,179.83,30.38]
[1752807121241,5.66018904,179.85,179.84,6.59032048]
[1752807121431,0.1,179.85,179.84,23.37500445]
[1752807121835,0.1,179.85,179.84,6.59032048]
[1752807122520,0.1,179.85,179.84,23.37500445]
[1752807123134,0.1,179.85,179.84,28.93550267]
[1752807123321,0.1,179.85,179.84,23.37500445]
[1752807126724,0.1,179.85,179.84,32.7578426]
[1752807127832,0.1,179.85,179.84,27.19734438]
[1752807128231,0.1,179.85,179.84,86.99734438]
[1752807128736,0.1,179.85,179.84,92.5578426]
[1752807129122,0.1,179.85,179.84,86.99734438]
[1752807129326,0.1,179.85,179.84,117.37734438]
[1752807130044,0.1,179.85,179.84,122.9378426]
[1752807132139,0.1,179.85,179.84,117.37734438]
[1752807134452,0.1,179.85,179.84,110.7670239]
[1752807134648,0.1,179.85,179.84,113.53500445]
[1752807135725,0.1,179.85,179.84,117.36341463]
[1752807136149,0.1,179.85,179.84,113.53500445]
[1752807137542,0.1,179.85,179.84,106.94468397]
[1752807137730,0.1,179.85,179.84,113.53500445]
[1752807138638,0.1,179.85,179.84,106.94468397]
[1752807138832,0.1,179.85,179.84,113.53500445]
[1752807144363,0.1,179.85,179.84,119.09550267]
[1752807144665,0.06,179.86,179.85,76.48468397]
[1752807144960,0.06,179.86,179.85,83.07500445]
[1752807145333,0.06,179.86,179.85,88.63519349]
[1752807146163,0.06,179.86,179.85,76.48468397]
[1752807146539,0.06,179.86,179.85,83.07500445]
[1752807147168,0.06,179.86,179.85,106.80468397]
[1752807147347,0.06,179.86,179.85,113.39500445]
[1752807147750,0.06,179.86,179.85,83.07500445]
[1752807147951,0.06,179.86,179.85,113.39500445]
[1752807149047,0.06,179.86,179.85,113.29500445]
[1752807149668,0.06,179.86,179.85,118.85519349]
[1752807150156,0.06,179.86,179.85,88.53519349]
[1752807150351,0.06,179.86,179.85,118.85519349]
[1752807150753,0.06,179.86,179.85,88.53519349]
[1752807150958,0.06,179.86,179.85,113.29500445]
[1752807152162,0.06,179.86,179.85,82.97500445]
[1752807152357,0.06,179.86,179.85,113.27500445]
[1752807152549,0.06,179.86,179.85,82.97500445]
[1752807152878,0.06,179.86,179.85,113.27500445]
[1752807153379,0.06,179.86,179.85,118.83519349]
[1752807154973,0.06,179.86,179.85,113.27500445]
[1752807155161,0.06,179.86,179.85,117.10941007]
[1752807155874,0.06,179.86,179.85,110.51908959]
[1752807156058,0.06,179.86,179.85,93.73440562]
[1752807160665,0.06,179.86,179.85,100.3247261]
[1752807160873,0.06,179.86,179.85,100.33517033]
[1752807162378,0.06,179.86,179.85,117.1198543]
[1752807162961,0.06,179.86,179.85,110.52953382]
[1752807163270,0.06,179.86,179.85,3.84484985]
[1752807165258,5.6198799,179.86,179.85,3.84484985]
[1752807166363,0.06,179.86,179.85,57.4998543]
[1752807167874,0.06,179.86,179.85,50.90953382]
[1752807168077,0.06,179.86,179.85,47.06468397]
[1752807169487,0.78,179.86,179.85,47.06468397]
[1752807169674,0.78,179.86,179.85,106.66468397]
[1752807170162,0.78,179.86,179.85,113.25500445]
[1752807170724,0.78,179.86,179.85,106.66468397]
[1752807170883,0.78,179.86,179.85,106.69468397]
[1752807171466,0.78,179.86,179.85,106.67468397]
[1752807173587,0.06,179.86,179.85,113.26500445]
[1752807174384,0.06,179.86,179.85,106.67468397]
[1752807174799,0.06,179.86,179.85,113.26500445]
[1752807179094,0.78,179.86,179.85,106.67468397]
[1752807179991,0.78,179.86,179.85,59.63]
[1752807180207,7.37032048,179.86,179.85,59.63]
[1752807180416,0.78,179.86,179.85,59.63]
[1752807181482,0.78,179.86,179.85,0.03]
[1752807181692,6.3398799,179.86,179.85,0.03]
[1752807182590,0.78,179.86,179.85,0.03]
[1752807182902,0.06,179.86,179.85,23.40500445]
[1752807183100,0.06,179.86,179.85,16.81468397]
[1752807183308,0.06,179.86,179.85,23.40500445]
[1752807183818,0.06,179.86,179.85,16.81468397]
[1752807184188,0.06,179.86,179.85,29.62519349]
[1752807184709,0.06,179.86,179.85,37.86539349]
[1752807185750,0.06,179.86,179.85,97.46539349]
[1752807186421,0.06,179.86,179.85,123.46539349]
[1752807193790,0.06,179.86,179.85,152.98539349]
[1752807194392,0.06,179.86,179.85,153.64539349]
[1752807195398,0.06,179.86,179.85,121.42520445]
[1752807195897,0.06,179.86,179.85,83.00500445]
[1752807196089,0.72,179.86,179.85,83.00500445]
[1752807196292,0.72,179.86,179.85,113.18500445]
[1752807198493,0.72,179.86,179.85,117.00900204]
[1752807199014,0.06,179.86,179.85,123.22919108]
[1752807199220,0.06,179.86,179.85,117.66900204]
[1752807199395,0.06,179.86,179.85,117.00900204]
[1752807199713,0.06,179.86,179.85,110.41868156]
[1752807199896,0.06,179.86,179.85,117.00900204]
[1752807201823,0.06,179.86,179.85,110.41868156]
[1752807202009,0.06,179.86,179.85,117.00900204]
[1752807203218,0.06,179.86,179.85,123.22919108]
[1752807203605,0.00449447,179.86,179.85,123.22919108]
[1752807204298,0.00449447,179.86,179.85,116.6388706]
[1752807204504,0.00449447,179.86,179.85,123.22919108]
[1752807205298,0.06,179.87,179.86,81.9400694]
[1752807205518,0.06,179.87,179.86,86.42406699]
[1752807206107,0.06,179.87,179.86,86.79450757]
[1752807206614,0.06,179.87,179.86,80.20418709]
[1752807206809,0.06,179.87,179.86,116.93450757]
[1752807208018,0.06,179.87,179.86,116.93809224]
[1752807208719,0.06,179.87,179.86,110.34777176]
[1752807208902,0.06,179.87,179.86,86.79809224]
[1752807209215,0.06,179.87,179.86,116.93809224]
[1752807211032,0.06,179.87,179.86,122.49797214]
[1752807212136,0.06,179.87,179.86,123.21797214]
[1752807212727,0.06,179.87,179.86,129.29877214]
[1752807213112,0.06,179.87,179.86,117.14857176]
[1752807213309,0.06,179.87,179.86,122.99889224]
[1752807213704,0.06,179.87,179.86,128.55877214]
[1752807214212,0.06,179.87,179.86,129.27877214]
[1752807214816,0.06,179.87,179.86,123.71889224]
[1752807215124,0.06,179.87,179.86,129.27877214]
[1752807215704,0.06,179.87,179.86,128.55877214]
[1752807215927,0.06,179.87,179.86,122.99889224]
[1752807216102,0.06,179.87,179.86,116.91809224]
[1752807217526,0.06,179.87,179.86,116.89809224]
[1752807217910,0.06,179.87,179.86,122.45797214]
[1752807218929,0.06,179.87,179.86,110.30777176]
[1752807219113,0.06,179.87,179.86,116.89809224]
[1752807219629,0.06,179.87,179.86,113.07050998]
[1752807219630,0.73,179.87,179.86,113.07050998]
[1752807219814,0.73,179.87,179.86,116.90219231]
[1752807223632,0.73,179.87,179.86,110.31187183]
[1752807223826,0.73,179.87,179.86,116.90219231]
[1752807225725,0.73,179.87,179.86,110.31187183]
[1752807225927,0.73,179.87,179.86,116.90219231]
[1752807227155,0.73,179.87,179.86,63.42718786]
[1752807227156,12.87989128,179.87,179.86,63.42718786]
[1752807227640,12.87989128,179.87,179.86,3.83168233]
[1752807228841,12.87989128,179.87,179.85,0.03]
[1752807229140,12.82020038,179.86,179.85,0.03]
[1752807231441,42.78468397,179.85,179.81,1e-08]
[1752807231642,42.78468397,179.85,179.74,0.03]
[1752807231643,26.0,179.79,179.74,0.03]
[1752807231839,6.59032048,179.78,179.74,0.03]
[1752807232040,7.26032048,179.78,179.74,0.03]
[1752807233348,12.82267446,179.78,179.74,0.03]
[1752807234351,0.67,179.78,179.74,16.81468397]
[1752807234926,0.67,179.78,179.74,17.53468397]
[1752807235220,0.67,179.8,179.76,6.59032048]
[1752807236143,38.15185003,179.81,179.76,6.59032048]
[1752807236144,0.67,179.79,179.76,6.59032048]
[1752807236325,0.67,179.79,179.76,12.15322909]
[1752807236526,0.67,179.82,179.78,6.59032048]
[1752807236726,0.67,179.81,179.79,4.02727351]
[1752807237046,0.67,179.81,179.8,4.02727351]
[1752807237233,7.26032048,179.81,179.8,4.02721545]
[1752807237436,7.26032048,179.81,179.77,0.03]
[1752807237437,39.75684642,179.81,179.77,0.03]
[1752807237636,6.59032048,179.78,179.77,0.03]
[1752807238021,7.17032048,179.78,179.77,0.03]
[1752807238826,12.73267446,179.78,179.77,0.03]
[1752807240328,5.56213166,179.79,179.77,0.03]
[1752807240524,6.14179046,179.8,179.77,0.03]
[1752807240749,5.56143251,179.81,179.77,7.34032048]
[1752807241228,0.58,179.84,179.8,23.37500445]
[1752807241428,0.64,179.87,179.82,6.59032048]
[1752807241652,5.61966462,179.87,179.83,7.28032048]
[1752807242168,0.06,179.87,179.83,7.28032048]
[1752807242543,0.06,179.87,179.84,23.37500445]
[1752807242728,0.06,179.87,179.84,82.97050998]
[1752807243125,0.58,179.86,179.84,59.59550553]
[1752807243344,0.06,179.87,179.84,59.59550553]
[1752807243737,0.64,179.87,179.84,59.59550553]
[1752807244556,0.06,179.87,179.84,66.87582601]
[1752807244939,0.06,179.87,179.84,59.59550553]
[1752807245139,0.64,179.87,179.84,59.59550553]
[1752807245779,6.19981328,179.87,179.84,59.59550553]
[1752807246632,6.19981328,179.87,179.83,66.18582601]
[1752807246832,0.06,179.87,179.84,6.59032048]
[1752807247247,0.06,179.87,179.84,16.78468397]
[1752807247450,0.06,179.87,179.84,23.37500445]
[1752807247451,5.61957979,179.87,179.84,23.37500445]
[1752807247634,5.61957979,179.87,179.83,60.28550553]
[1752807247834,5.61957979,179.87,179.83,66.87582601]
[1752807250271,0.06,179.87,179.84,0.69]
[1752807252938,0.06,179.87,179.84,7.28032048]
[1752807253337,0.06,179.87,179.85,0.69]
[1752807253953,0.06,179.87,179.84,6.59032048]
[1752807254263,0.06,179.87,179.84,0.69]
[1752807255340,0.06,179.87,179.84,7.28032048]
[1752807255537,0.06,179.87,179.85,0.69]
[1752807256758,0.06,179.87,179.85,7.28032048]
[1752807256969,0.06,179.87,179.86,6.59032048]
[1752807257177,0.06,179.87,179.86,7.28032048]
[1752807257978,0.06,179.87,179.86,0.69]
[1752807259064,0.06,179.87,179.86,24.06500445]
[1752807261557,0.06,179.87,179.86,83.66050998]
[1752807264284,0.06,179.87,179.86,77.0701895]
[1752807264486,0.06,179.87,179.86,83.66050998]
[1752807264671,0.06,179.87,179.86,66.87582601]
[1752807265182,0.06,179.87,179.86,60.28550553]
[1752807265796,0.64,179.87,179.86,59.59550553]
[1752807265982,7.23032048,179.87,179.86,59.59550553]
[1752807266283,7.23032048,179.87,179.8,47.44468397]
[1752807266449,26.06,179.87,179.8,47.44468397]
[1752807266654,6.59032048,179.85,179.8,54.03500445]
[1752807266966,0.58,179.86,179.81,7.28032048]
[1752807266967,6.59032048,179.86,179.81,7.28032048]
[1752807267175,6.59032048,179.86,179.82,0.69]
[1752807267365,6.59032048,179.86,179.83,0.69]
[1752807268312,5.5598799,179.86,179.83,0.69]
[1752807268481,6.59032048,179.85,179.8,0.72]
[1752807268690,6.59032048,179.85,179.81,0.69]
[1752807269070,12.73020038,179.86,179.81,0.69]
[1752807272275,12.73020038,179.86,179.82,0.68]
[1752807273191,12.73020038,179.86,179.8,54.02500445]
[1752807273403,12.73020038,179.86,179.8,113.62050998]
[1752807273692,12.73020038,179.86,179.81,0.68]
[1752807274066,12.73020038,179.86,179.82,0.68]
[1752807275809,6.1398799,179.86,179.82,0.68]
[1752807275965,12.73020038,179.86,179.82,0.68]
[1752807277190,12.15020038,179.86,179.81,6.59032048]
[1752807277364,5.56049822,179.84,179.81,0.68]
[1752807277564,5.56049822,179.84,179.81,7.27032048]
[1752807278089,5.56049822,179.84,179.82,0.68]
[1752807278889,5.56049822,179.84,179.8,107.0301895]
[1752807279080,5.56049822,179.84,179.8,112.94050998]
[1752807279274,5.56049822,179.84,179.81,0.68]
[1752807280067,5.56049822,179.84,179.8,0.03]
[1752807280068,0.58,179.83,179.8,0.03]
[1752807280262,6.59032048,179.81,179.8,0.03]
[1752807280781,7.17032048,179.81,179.8,0.03]
[1752807282289,5.56142594,179.81,179.8,0.03]
[1752807282478,5.56142594,179.81,179.8,0.71]
[1752807282976,5.56142594,179.81,179.8,0.03]
[1752807285483,5.56118867,179.82,179.8,0.71]
[1752807286286,5.56118867,179.82,179.8,0.03]
[1752807287391,5.56049822,179.84,179.8,6.62032048]
[1752807287566,5.56049822,179.84,179.81,0.68]
[1752807288082,5.56049822,179.84,179.82,0.68]
[1752807288394,5.56049822,179.84,179.83,0.68]
[1752807289092,5.56049822,179.84,179.81,7.27032048]
[1752807289286,5.56049822,179.84,179.82,0.68]
[1752807289496,5.56018904,179.85,179.82,0.68]
[1752807289789,0.58,179.83,179.8,0.03]
[1752807290380,6.59032048,179.84,179.8,0.03]
[1752807290580,0.58,179.84,179.8,0.71]
[1752807290985,0.58,179.84,179.8,60.30550553]
[1752807291299,7.17032048,179.84,179.8,60.30550553]
[1752807291797,5.56080742,179.83,179.8,60.30550553]
[1752807292904,5.56080742,179.83,179.8,59.62550553]
[1752807293078,5.56080742,179.83,179.81,0.68]
[1752807293679,5.56049822,179.84,179.81,0.68]
[1752807295190,5.56049822,179.84,179.82,0.68]
[1752807295801,5.56018904,179.85,179.82,0.68]
[1752807295995,5.56018904,179.85,179.8,66.89582601]
[1752807296178,6.14018904,179.85,179.8,66.21582601]
[1752807296379,6.14018904,179.85,179.81,0.68]
[1752807296985,12.73050952,179.85,179.8,0.03]
[1752807297293,6.14018904,179.85,179.8,7.30032048]
[1752807297502,6.14018904,179.85,179.8,6.62032048]
[1752807297800,6.14018904,179.85,179.81,0.68]
[1752807298404,5.56018904,179.85,179.8,6.62032048]
[1752807298696,5.56018904,179.85,179.82,0.68]
[1752807300190,5.56018904,179.85,179.81,6.59032048]
[1752807300389,5.56018904,179.85,179.83,0.68]
[1752807300693,5.5599223,179.86,179.83,7.27032048]
[1752807300882,0.06,179.87,179.84,0.68]
[1752807301079,7.17032048,179.86,179.82,89.41550553]
[1752807301280,0.06,179.87,179.82,59.59550553]
[1752807301281,7.17032048,179.85,179.82,59.59550553]
[1752807301691,7.17032048,179.85,179.8,30.56]
[1752807301692,0.58,179.84,179.8,30.56]
[1752807301898,7.17032048,179.84,179.8,29.85]
[1752807302203,0.58,179.84,179.8,36.44032048]
[1752807302413,0.58,179.84,179.8,37.15032048]
[1752807302603,6.59032048,179.85,179.8,30.56]
[1752807302903,5.56049822,179.84,179.8,30.56]
[1752807304187,5.56049822,179.84,179.8,29.85]
[1752807304384,5.56049822,179.84,179.81,0.71]
[1752807305310,5.56049822,179.84,179.8,36.44032048]
[1752807305605,5.56018904,179.85,179.81,0.71]
[1752807305836,6.14018904,179.85,179.81,0.71]
[1752807306007,12.73050952,179.85,179.81,0.71]
[1752807306395,26.63098213,179.85,179.81,0.71]
[1752807307396,5.56080742,179.83,179.8,0.03]
[1752807307910,5.56080742,179.83,179.8,0.74]
[1752807308087,5.56080742,179.83,179.81,0.71]
[1752807310192,19.46066165,179.85,179.81,0.71]
[1752807310599,19.46066165,179.85,179.82,0.71]
[1752807311900,5.56018904,179.85,179.83,0.71]
[1752807312104,5.56018904,179.85,179.84,0.71]
[1752807312307,5.56018904,179.85,179.82,0.71]
[1752807312505,5.56018904,179.85,179.83,0.71]
[1752807313115,5.56018904,179.85,179.84,0.71]
[1752807313497,5.56018904,179.85,179.82,36.37032048]
[1752807313709,5.56018904,179.85,179.83,0.71]
[1752807314600,5.56018904,179.85,179.82,29.78]
[1752807314808,0.58,179.84,179.81,16.78468397]
[1752807314997,0.58,179.84,179.81,46.56468397]
[1752807315191,6.14018904,179.85,179.81,47.27468397]
[1752807315901,5.56018904,179.85,179.82,0.71]
[1752807316300,5.56018904,179.85,179.82,7.30032048]
[1752807316489,5.56018904,179.85,179.83,0.71]
[1752807318205,5.56018904,179.85,179.82,0.71]
[1752807321906,5.56018904,179.85,179.83,6.59032048]
[1752807322422,5.56018904,179.85,179.84,0.71]
[1752807322723,5.56018904,179.85,179.83,0.71]
[1752807324227,5.56018904,179.85,179.82,7.30032048]
[1752807324833,5.56018904,179.85,179.82,0.71]
[1752807325136,6.14018904,179.85,179.82,7.30032048]
[1752807325439,5.56018904,179.85,179.82,7.30032048]
[1752807326328,5.56018904,179.85,179.82,0.71]
[1752807327912,5.56018904,179.85,179.83,0.71]
[1752807330421,31.55998356,179.86,179.83,0.71]
[1752807330643,31.55998356,179.86,179.84,0.71]
[1752807331840,31.55998356,179.86,179.83,29.72]
[1752807332135,31.55998356,179.86,179.83,30.41]
[1752807335614,31.55998356,179.86,179.83,29.72]
[1752807336238,0.58,179.85,179.83,29.72]
[1752807336732,31.55998356,179.86,179.81,112.65050998]
[1752807336930,0.58,179.85,179.81,113.34050998]
[1752807337111,0.58,179.85,179.82,0.69]
[1752807337729,5.56032359,179.85,179.82,0.69]
[1752807338817,5.56032359,179.85,179.82,7.28032048]
[1752807339417,5.56032359,179.85,179.83,0.69]
[1752807339912,5.56032359,179.85,179.83,7.28032048]
[1752807340339,5.56032359,179.85,179.83,0.69]
[1752807340924,31.55995829,179.86,179.83,0.69]
[1752807343048,5.55995829,179.86,179.83,30.37]
[1752807343742,5.55995829,179.86,179.83,29.68]
[1752807344046,5.6195708,179.87,179.84,0.69]
[1752807346550,5.6195708,179.87,179.84,4.20870869]
[1752807346840,5.6195708,179.87,179.85,0.69]
[1752807347235,5.6195708,179.87,179.83,34.57870869]
[1752807347644,5.6195708,179.87,179.84,0.69]
[1752807347829,6.1995708,179.87,179.84,0.69]
[1752807348028,0.58,179.86,179.83,29.68]
[1752807348240,5.56018904,179.85,179.83,29.68]
[1752807348446,5.56018904,179.85,179.82,60.28550553]
[1752807349227,5.56018904,179.85,179.82,59.59550553]
[1752807349552,5.56018904,179.85,179.83,0.69]
[1752807349752,5.56018904,179.85,179.82,59.59550553]
[1752807349934,5.56018904,179.85,179.82,60.28550553]
[1752807350950,0.06,179.87,179.84,4.20870869]
[1752807351150,0.06,179.87,179.85,4.89870869]
[1752807351336,0.06,179.87,179.86,4.20870869]
[1752807351546,0.06,179.87,179.86,4.89870869]
[1752807352356,0.06,179.87,179.86,0.69]
[1752807352658,0.06,179.87,179.86,4.89870869]
[1752807352968,0.06,179.87,179.86,7.26304928]
[1752807356938,0.06,179.87,179.85,103.59815481]
[1752807357372,0.06,179.87,179.85,104.28815481]
[1752807358048,0.06,179.87,179.85,74.64815481]
[1752807358387,0.06,179.87,179.85,104.24815481]
[1752807360861,0.06,179.87,179.86,0.69]
[1752807361840,0.06,179.87,179.86,7.26304928]
[1752807362345,0.06,179.87,179.86,7.29304928]
[1752807365245,0.06,179.87,179.86,0.72]
[1752807365450,0.06,179.87,179.86,7.29304928]
[1752807367978,0.06,179.87,179.86,66.88855481]
[1752807369576,0.06,179.87,179.86,89.15550553]
[1752807369877,0.06,179.87,179.86,59.59550553]
[1752807370063,0.64,179.87,179.86,59.59550553]
[1752807371069,0.06,179.87,179.86,59.59550553]
[1752807373067,0.64,179.87,179.86,59.59550553]
[1752807373572,0.06,179.87,179.86,59.59550553]
[1752807374077,0.64,179.87,179.83,59.59550553]
[1752807374992,5.5598799,179.86,179.83,59.59550553]
[1752807375155,6.1398799,179.86,179.83,59.59550553]
[1752807377386,6.1398799,179.86,179.82,30.28]
[1752807377387,6.57304928,179.85,179.82,0.72]
[1752807377563,6.57304928,179.83,179.8,0.03]
[1752807377755,6.57304928,179.83,179.8,0.75]
[1752807378574,6.57304928,179.84,179.81,0.72]
[1752807378879,6.57304928,179.85,179.81,0.72]
[1752807379382,5.56049822,179.84,179.81,0.72]
[1752807379981,7.15304928,179.85,179.81,0.72]
[1752807381868,0.58,179.85,179.81,0.72]
[1752807382074,7.15304928,179.85,179.81,0.72]
[1752807382981,6.57304928,179.85,179.8,36.14304928]
[1752807383169,7.21304928,179.87,179.81,7.29304928]
[1752807383365,7.21304928,179.87,179.81,6.57304928]
[1752807383587,7.21304928,179.87,179.82,0.72]
[1752807383889,0.58,179.86,179.82,0.72]
[1752807384490,7.15304928,179.86,179.82,0.72]
[1752807384976,6.57304928,179.85,179.82,0.72]
[1752807385184,6.57304928,179.85,179.8,89.16550553]
[1752807385395,6.57304928,179.85,179.81,0.72]
[1752807385763,7.15304928,179.86,179.8,95.73855481]
[1752807385967,7.15304928,179.86,179.82,0.72]
[1752807387661,6.63304928,179.87,179.82,0.72]
[1752807387866,0.06,179.87,179.83,6.57304928]
[1752807388081,0.06,179.87,179.84,0.72]
[1752807389772,0.64,179.87,179.82,7.29304928]
[1752807389972,0.64,179.87,179.83,0.72]
[1752807390188,7.21304928,179.87,179.83,0.72]
[1752807391593,0.64,179.87,179.83,0.72]
[1752807391889,7.21304928,179.87,179.83,0.72]
[1752807392091,7.15304928,179.86,179.81,67.93840553]
[1752807392387,7.15304928,179.86,179.81,59.59550553]
[1752807392388,0.58,179.85,179.81,59.59550553]
[1752807392696,0.58,179.84,179.81,59.59550553]
[1752807392896,6.57304928,179.86,179.81,59.59550553]
[1752807393086,0.58,179.85,179.81,60.25550553]
[1752807393484,7.15304928,179.86,179.82,0.66]
[1752807394098,6.63304928,179.87,179.81,66.16855481]
[1752807394400,6.63304928,179.87,179.83,0.66]
[1752807394896,7.21304928,179.87,179.83,0.66]
[1752807395393,7.21304928,179.87,179.82,6.57304928]
[1752807395394,0.06,179.87,179.82,6.57304928]
[1752807395601,26.06,179.87,179.84,7.23304928]
[1752807395781,26.06,179.87,179.84,6.57304928]
[1752807395981,26.06,179.87,179.84,7.23304928]
[1752807397578,26.06,179.87,179.84,0.66]
[1752807398299,0.06,179.87,179.84,0.66]
[1752807401906,0.06,179.87,179.82,8.20204928]
[1752807401907,0.58,179.86,179.82,8.20204928]
[1752807402100,0.58,179.86,179.82,8.86204928]
[1752807402612,0.64,179.87,179.83,0.66]
[1752807403289,0.06,179.87,179.84,0.66]
[1752807404701,0.58,179.86,179.82,59.59550553]
[1752807405000,0.06,179.87,179.83,0.66]
[1752807405207,0.64,179.87,179.83,0.66]
[1752807406311,0.58,179.86,179.82,60.25550553]
[1752807407107,0.64,179.87,179.83,0.66]
[1752807407809,0.06,179.87,179.82,59.59550553]
[1752807408006,0.58,179.86,179.82,60.25550553]
[1752807409292,4.78973294,179.86,179.8,63.83523847]
[1752807409496,4.20973294,179.84,179.8,60.28550553]
[1752807409797,0.06,179.87,179.81,0.66]
[1752807409798,0.58,179.86,179.81,0.66]
[1752807410112,4.78973294,179.85,179.81,0.66]
[1752807411822,26.06,179.87,179.8,59.62550553]
[1752807411823,4.20973294,179.83,179.8,59.62550553]
[1752807411989,4.20973294,179.83,179.8,0.69]
[1752807412190,4.78973294,179.84,179.8,0.69]
[1752807412590,4.20973294,179.84,179.81,0.66]
[1752807412788,4.78973294,179.85,179.81,0.66]